{"text_format":"1","workbook":"xlsx","n_sheets":3,"sheets":["табельЦУП_12","Обозначения в табеле","1"],"not_rendered":{"charts":0,"images":0,"macros":0,"external_links":1,"defined_names":3,"comments":0,"pivot_tables":0},"unopened":[],"bounds":{"document_bytes":16777216,"sheet_cells":100000,"rows_first":2000,"rows_last":500,"rows_between":2000,"halvings":0,"cell_chars":16384,"cell_head_chars":4096},"cells_cut":0,"cells_raw":0,"read":"whole","date_system":"1900"}

{"sheet":"табельЦУП_12","index":0,"n_rows":59,"n_cols":40,"rows_kept":59,"cut":false,"hidden":false,"merged":[[57,0,58,0],[57,1,58,1],[6,39,8,39],[6,35,8,35],[6,36,8,36],[6,37,8,37],[6,3,6,33],[6,34,8,34],[6,38,8,38],[13,0,14,0],[15,0,16,0],[17,0,18,0],[1,0,1,10],[6,1,8,1],[9,1,10,1],[11,1,12,1],[13,1,14,1],[15,1,16,1],[17,1,18,1],[9,0,10,0],[4,0,4,10],[6,2,8,2],[6,0,8,0],[11,0,12,0],[19,0,20,0],[35,0,36,0],[37,0,38,0],[39,0,40,0],[41,0,42,0],[31,0,32,0],[33,0,34,0],[21,0,22,0],[23,0,24,0],[25,0,26,0],[27,0,28,0],[29,0,30,0],[19,1,20,1],[21,1,22,1],[23,1,24,1],[25,1,26,1],[27,1,28,1],[29,1,30,1],[31,1,32,1],[33,1,34,1],[35,1,36,1],[37,1,38,1],[55,0,56,0],[55,1,56,1],[39,1,40,1],[53,1,54,1],[41,1,42,1],[43,1,44,1],[45,1,46,1],[47,1,48,1],[49,1,50,1],[43,0,44,0],[45,0,46,0],[47,0,48,0],[49,0,50,0],[53,0,54,0]]}
[null,null,null,null,null,null,null,null,null,null,null,null,null,null,null,null,null,null,null,null,null,null,null,null,null,null,null,null,null,null,null,null,null,null,null,"Согласовано"]
["организация"]
[null,null,null,null,null,null,null,null,null,null,null,null,null,null,"Табель учета рабочего времени.",null,null,null,null,null,null,null,null,null,null,null,null,null,null,null,null,null,null,null,null,"Утверждаю:"]
["ЦУП №",12,null,null,null,null,null,null,null,null,null,null,null,null,"за",null,null,null,null,null,20,null,"г."]
["подразделение"]
[]
["ФИО","должность","часы   ставка","Февраль 2014г.",null,null,null,null,null,null,null,null,null,null,null,null,null,null,null,null,null,null,null,null,null,null,null,null,null,null,null,null,null,null,"Итого часов, минут","Больнич ный лист","Отпуск","Выхдные дни","Отпуск по уходу за ребенком","Всего отработано дней"]
[null,null,null,1,2,3,4,5,6,7,8,9,10,11,12,13,14,15,16,17,18,19,20,21,22,23,24,25,26,27,28,29,30,31]
[null,null,null,"Сб",{"$f":"'1'!E9","v":"Вс"},{"$f":"'1'!F9","v":"Пн"},{"$f":"'1'!G9","v":"Вт"},{"$f":"'1'!H9","v":"Ср"},{"$f":"'1'!I9","v":"Чт"},{"$f":"'1'!J9","v":"Пт"},{"$f":"'1'!K9","v":"Сб"},{"$f":"'1'!L9","v":"Вс"},{"$f":"'1'!M9","v":"Пн"},{"$f":"'1'!N9","v":"Вт"},{"$f":"'1'!O9","v":"Ср"},{"$f":"'1'!P9","v":"Чт"},{"$f":"'1'!Q9","v":"Пт"},{"$f":"'1'!R9","v":"Сб"},{"$f":"'1'!S9","v":"Вс"},{"$f":"'1'!T9","v":"Пн"},{"$f":"'1'!U9","v":"Вт"},{"$f":"'1'!V9","v":"Ср"},{"$f":"'1'!W9","v":"Чт"},{"$f":"'1'!X9","v":"Пт"},{"$f":"'1'!Y9","v":"Сб"},{"$f":"'1'!Z9","v":"Вс"},{"$f":"'1'!AA9","v":"Пн"},{"$f":"'1'!AB9","v":"Вт"},{"$f":"'1'!AC9","v":"Ср"},{"$f":"'1'!AD9","v":"Чт"},{"$f":"'1'!AE9","v":"Пт"},{"$f":"'1'!AF9","v":"Сб"},{"$f":"'1'!AG9","v":"Вс"},{"$f":"'1'!AH9","v":"Пн"}]
["Иванова Г.В.","цветовод 2 категория","часы","В",0.29166666666666602,0.33333333333333298,0.33333333333333298,0.33333333333333298,0.33333333333333298,0.33333333333333298,"В","В",0.33333333333333298,0.33333333333333298,0.33333333333333298,"Б","Б","О","О","О","О","О","О","Р","В","В",0.33333333333333298,0.33333333333333298,0.33333333333333298,0.33333333333333298,"В","В",0.33333333333333298,0.33333333333333298,{"$f":"'1'!AI10","v":4.9583333333333277},{"$f":"'1'!AJ10","v":2},{"$f":"'1'!AK10","v":6},{"$f":"'1'!AL10","v":7},{"$f":"'1'!AM10","v":1},{"$f":"'1'!AN10","v":15}]
[null,null,"ставка",null,null,null,null,null,null,null,null,null,null,null,null,null,null,null,null,null,null,null,null,null,null,null,null,null,null,null,null,null,null,null,{"$f":"'1'!AI11","v":0},{"$f":"'1'!AJ11","v":0},{"$f":"'1'!AK11","v":0},{"$f":"'1'!AL11","v":0},{"$f":"'1'!AM11","v":0},{"$f":"'1'!AN11","v":0}]
[null,null,"часы",null,null,null,null,null,null,null,null,null,null,null,null,null,null,null,null,null,null,null,null,null,null,null,null,null,null,null,null,null,null,null,{"$f":"'1'!AI12","v":0},{"$f":"'1'!AJ12","v":0},{"$f":"'1'!AK12","v":0},{"$f":"'1'!AL12","v":0},{"$f":"'1'!AM12","v":0},{"$f":"'1'!AN12","v":0}]
[null,null,"ставка",null,null,null,null,null,null,null,null,null,null,null,null,null,null,null,null,null,null,null,null,null,null,null,null,null,null,null,null,null,null,null,{"$f":"'1'!AI13","v":0},{"$f":"'1'!AJ13","v":0},{"$f":"'1'!AK13","v":0},{"$f":"'1'!AL13","v":0},{"$f":"'1'!AM13","v":0},{"$f":"'1'!AN13","v":0}]
[null,null,"часы",null,null,null,null,null,null,null,null,null,null,null,null,null,null,null,null,null,null,null,null,null,null,null,null,null,null,null,null,null,null,null,{"$f":"'1'!AI14","v":0},{"$f":"'1'!AJ14","v":0},{"$f":"'1'!AK14","v":0},{"$f":"'1'!AL14","v":0},{"$f":"'1'!AM14","v":0},{"$f":"'1'!AN14","v":0}]
[null,null,"ставка",null,null,null,null,null,null,null,null,null,null,null,null,null,null,null,null,null,null,null,null,null,null,null,null,null,null,null,null,null,null,null,{"$f":"'1'!AI15","v":0},{"$f":"'1'!AJ15","v":0},{"$f":"'1'!AK15","v":0},{"$f":"'1'!AL15","v":0},{"$f":"'1'!AM15","v":0},{"$f":"'1'!AN15","v":0}]
[null,null,"часы",null,null,null,null,null,null,null,null,null,null,null,null,null,null,null,null,null,null,null,null,null,null,null,null,null,null,null,null,null,null,null,{"$f":"'1'!AI16","v":0},{"$f":"'1'!AJ16","v":0},{"$f":"'1'!AK16","v":0},{"$f":"'1'!AL16","v":0},{"$f":"'1'!AM16","v":0},{"$f":"'1'!AN16","v":0}]
[null,null,"ставка",null,null,null,null,null,null,null,null,null,null,null,null,null,null,null,null,null,null,null,null,null,null,null,null,null,null,null,null,null,null,null,{"$f":"'1'!AI17","v":0},{"$f":"'1'!AJ17","v":0},{"$f":"'1'!AK17","v":0},{"$f":"'1'!AL17","v":0},{"$f":"'1'!AM17","v":0},{"$f":"'1'!AN17","v":0}]
[null,null,"часы",null,null,null,null,null,null,null,null,null,null,null,null,null,null,null,null,null,null,null,null,null,null,null,null,null,null,null,null,null,null,null,{"$f":"'1'!AI18","v":0},{"$f":"'1'!AJ18","v":0},{"$f":"'1'!AK18","v":0},{"$f":"'1'!AL18","v":0},{"$f":"'1'!AM18","v":0},{"$f":"'1'!AN18","v":0}]
[null,null,"ставка",null,null,null,null,null,null,null,null,null,null,null,null,null,null,null,null,null,null,null,null,null,null,null,null,null,null,null,null,null,null,null,{"$f":"'1'!AI19","v":0},{"$f":"'1'!AJ19","v":0},{"$f":"'1'!AK19","v":0},{"$f":"'1'!AL19","v":0},{"$f":"'1'!AM19","v":0},{"$f":"'1'!AN19","v":0}]
[null,null,"часы",null,null,null,null,null,null,null,null,null,null,null,null,null,null,null,null,null,null,null,null,null,null,null,null,null,null,null,null,null,null,null,{"$f":"'1'!AI20","v":0},{"$f":"'1'!AJ20","v":0},{"$f":"'1'!AK20","v":0},{"$f":"'1'!AL20","v":0},{"$f":"'1'!AM20","v":0},{"$f":"'1'!AN20","v":0}]
[null,null,"ставка",null,null,null,null,null,null,null,null,null,null,null,null,null,null,null,null,null,null,null,null,null,null,null,null,null,null,null,null,null,null,null,{"$f":"'1'!AI21","v":0},{"$f":"'1'!AJ21","v":0},{"$f":"'1'!AK21","v":0},{"$f":"'1'!AL21","v":0},{"$f":"'1'!AM21","v":0},{"$f":"'1'!AN21","v":0}]
[null,null,"часы",null,null,null,null,null,null,null,null,null,null,null,null,null,null,null,null,null,null,null,null,null,null,null,null,null,null,null,null,null,null,null,{"$f":"'1'!AI22","v":0},{"$f":"'1'!AJ22","v":0},{"$f":"'1'!AK22","v":0},{"$f":"'1'!AL22","v":0},{"$f":"'1'!AM22","v":0},{"$f":"'1'!AN22","v":0}]
[null,null,"ставка",null,null,null,null,null,null,null,null,null,null,null,null,null,null,null,null,null,null,null,null,null,null,null,null,null,null,null,null,null,null,null,{"$f":"'1'!AI23","v":0},{"$f":"'1'!AJ23","v":0},{"$f":"'1'!AK23","v":0},{"$f":"'1'!AL23","v":0},{"$f":"'1'!AM23","v":0},{"$f":"'1'!AN23","v":0}]
[null,null,"часы",null,null,null,null,null,null,null,null,null,null,null,null,null,null,null,null,null,null,null,null,null,null,null,null,null,null,null,null,null,null,null,{"$f":"'1'!AI24","v":0},{"$f":"'1'!AJ24","v":0},{"$f":"'1'!AK24","v":0},{"$f":"'1'!AL24","v":0},{"$f":"'1'!AM24","v":0},{"$f":"'1'!AN24","v":0}]
[null,null,"ставка",null,null,null,null,null,null,null,null,null,null,null,null,null,null,null,null,null,null,null,null,null,null,null,null,null,null,null,null,null,null,null,{"$f":"'1'!AI25","v":0},{"$f":"'1'!AJ25","v":0},{"$f":"'1'!AK25","v":0},{"$f":"'1'!AL25","v":0},{"$f":"'1'!AM25","v":0},{"$f":"'1'!AN25","v":0}]
[null,null,"часы",null,null,null,null,null,null,null,null,null,null,null,null,null,null,null,null,null,null,null,null,null,null,null,null,null,null,null,null,null,null,null,{"$f":"'1'!AI26","v":0},{"$f":"'1'!AJ26","v":0},{"$f":"'1'!AK26","v":0},{"$f":"'1'!AL26","v":0},{"$f":"'1'!AM26","v":0},{"$f":"'1'!AN26","v":0}]
[null,null,"ставка",null,null,null,null,null,null,null,null,null,null,null,null,null,null,null,null,null,null,null,null,null,null,null,null,null,null,null,null,null,null,null,{"$f":"'1'!AI27","v":0},{"$f":"'1'!AJ27","v":0},{"$f":"'1'!AK27","v":0},{"$f":"'1'!AL27","v":0},{"$f":"'1'!AM27","v":0},{"$f":"'1'!AN27","v":0}]
[null,null,"часы",null,null,null,null,null,null,null,null,null,null,null,null,null,null,null,null,null,null,null,null,null,null,null,null,null,null,null,null,null,null,null,{"$f":"'1'!AI28","v":0},{"$f":"'1'!AJ28","v":0},{"$f":"'1'!AK28","v":0},{"$f":"'1'!AL28","v":0},{"$f":"'1'!AM28","v":0},{"$f":"'1'!AN28","v":0}]
[null,null,"ставка",null,null,null,null,null,null,null,null,null,null,null,null,null,null,null,null,null,null,null,null,null,null,null,null,null,null,null,null,null,null,null,{"$f":"'1'!AI29","v":0},{"$f":"'1'!AJ29","v":0},{"$f":"'1'!AK29","v":0},{"$f":"'1'!AL29","v":0},{"$f":"'1'!AM29","v":0},{"$f":"'1'!AN29","v":0}]
[null,null,"часы",null,null,null,null,null,null,null,null,null,null,null,null,null,null,null,null,null,null,null,null,null,null,null,null,null,null,null,null,null,null,null,{"$f":"'1'!AI30","v":0},{"$f":"'1'!AJ30","v":0},{"$f":"'1'!AK30","v":0},{"$f":"'1'!AL30","v":0},{"$f":"'1'!AM30","v":0},{"$f":"'1'!AN30","v":0}]
[null,null,"ставка",null,null,null,null,null,null,null,null,null,null,null,null,null,null,null,null,null,null,null,null,null,null,null,null,null,null,null,null,null,null,null,{"$f":"'1'!AI31","v":0},{"$f":"'1'!AJ31","v":0},{"$f":"'1'!AK31","v":0},{"$f":"'1'!AL31","v":0},{"$f":"'1'!AM31","v":0},{"$f":"'1'!AN31","v":0}]
[null,null,"часы",null,null,null,null,null,null,null,null,null,null,null,null,null,null,null,null,null,null,null,null,null,null,null,null,null,null,null,null,null,null,null,{"$f":"'1'!AI32","v":0},{"$f":"'1'!AJ32","v":0},{"$f":"'1'!AK32","v":0},{"$f":"'1'!AL32","v":0},{"$f":"'1'!AM32","v":0},{"$f":"'1'!AN32","v":0}]
[null,null,"ставка",null,null,null,null,null,null,null,null,null,null,null,null,null,null,null,null,null,null,null,null,null,null,null,null,null,null,null,null,null,null,null,{"$f":"'1'!AI33","v":0},{"$f":"'1'!AJ33","v":0},{"$f":"'1'!AK33","v":0},{"$f":"'1'!AL33","v":0},{"$f":"'1'!AM33","v":0},{"$f":"'1'!AN33","v":0}]
[null,null,"часы",null,null,null,null,null,null,null,null,null,null,null,null,null,null,null,null,null,null,null,null,null,null,null,null,null,null,null,null,null,null,null,{"$f":"'1'!AI34","v":0},{"$f":"'1'!AJ34","v":0},{"$f":"'1'!AK34","v":0},{"$f":"'1'!AL34","v":0},{"$f":"'1'!AM34","v":0},{"$f":"'1'!AN34","v":0}]
[null,null,"ставка",null,null,null,null,null,null,null,null,null,null,null,null,null,null,null,null,null,null,null,null,null,null,null,null,null,null,null,null,null,null,null,{"$f":"'1'!AI35","v":0},{"$f":"'1'!AJ35","v":0},{"$f":"'1'!AK35","v":0},{"$f":"'1'!AL35","v":0},{"$f":"'1'!AM35","v":0},{"$f":"'1'!AN35","v":0}]
[null,null,"часы",null,null,null,null,null,null,null,null,null,null,null,null,null,null,null,null,null,null,null,null,null,null,null,null,null,null,null,null,null,null,null,{"$f":"'1'!AI36","v":0},{"$f":"'1'!AJ36","v":0},{"$f":"'1'!AK36","v":0},{"$f":"'1'!AL36","v":0},{"$f":"'1'!AM36","v":0},{"$f":"'1'!AN36","v":0}]
[null,null,"ставка",null,null,null,null,null,null,null,null,null,null,null,null,null,null,null,null,null,null,null,null,null,null,null,null,null,null,null,null,null,null,null,{"$f":"'1'!AI37","v":0},{"$f":"'1'!AJ37","v":0},{"$f":"'1'!AK37","v":0},{"$f":"'1'!AL37","v":0},{"$f":"'1'!AM37","v":0},{"$f":"'1'!AN37","v":0}]
[null,null,"часы",null,null,null,null,null,null,null,null,null,null,null,null,null,null,null,null,null,null,null,null,null,null,null,null,null,null,null,null,null,null,null,{"$f":"'1'!AI38","v":0},{"$f":"'1'!AJ38","v":0},{"$f":"'1'!AK38","v":0},{"$f":"'1'!AL38","v":0},{"$f":"'1'!AM38","v":0},{"$f":"'1'!AN38","v":0}]
[null,null,"ставка",null,null,null,null,null,null,null,null,null,null,null,null,null,null,null,null,null,null,null,null,null,null,null,null,null,null,null,null,null,null,null,{"$f":"'1'!AI39","v":0},{"$f":"'1'!AJ39","v":0},{"$f":"'1'!AK39","v":0},{"$f":"'1'!AL39","v":0},{"$f":"'1'!AM39","v":0},{"$f":"'1'!AN39","v":0}]
[null,null,"часы",null,null,null,null,null,null,null,null,null,null,null,null,null,null,null,null,null,null,null,null,null,null,null,null,null,null,null,null,null,null,null,{"$f":"'1'!AI40","v":0},{"$f":"'1'!AJ40","v":0},{"$f":"'1'!AK40","v":0},{"$f":"'1'!AL40","v":0},{"$f":"'1'!AM40","v":0},{"$f":"'1'!AN40","v":0}]
[null,null,"ставка",null,null,null,null,null,null,null,null,null,null,null,null,null,null,null,null,null,null,null,null,null,null,null,null,null,null,null,null,null,null,null,{"$f":"'1'!AI41","v":0},{"$f":"'1'!AJ41","v":0},{"$f":"'1'!AK41","v":0},{"$f":"'1'!AL41","v":0},{"$f":"'1'!AM41","v":0},{"$f":"'1'!AN41","v":0}]
[null,null,"часы",null,null,null,null,null,null,null,null,null,null,null,null,null,null,null,null,null,null,null,null,null,null,null,null,null,null,null,null,null,null,null,{"$f":"'1'!AI42","v":0},{"$f":"'1'!AJ42","v":0},{"$f":"'1'!AK42","v":0},{"$f":"'1'!AL42","v":0},{"$f":"'1'!AM42","v":0},{"$f":"'1'!AN42","v":0}]
[null,null,"ставка",null,null,null,null,null,null,null,null,null,null,null,null,null,null,null,null,null,null,null,null,null,null,null,null,null,null,null,null,null,null,null,{"$f":"'1'!AI43","v":0},{"$f":"'1'!AJ43","v":0},{"$f":"'1'!AK43","v":0},{"$f":"'1'!AL43","v":0},{"$f":"'1'!AM43","v":0},{"$f":"'1'!AN43","v":0}]
[null,null,"часы",null,null,null,null,null,null,null,null,null,null,null,null,null,null,null,null,null,null,null,null,null,null,null,null,null,null,null,null,null,null,null,{"$f":"'1'!AI44","v":0},{"$f":"'1'!AJ44","v":0},{"$f":"'1'!AK44","v":0},{"$f":"'1'!AL44","v":0},{"$f":"'1'!AM44","v":0},{"$f":"'1'!AN44","v":0}]
[null,null,"ставка",null,null,null,null,null,null,null,null,null,null,null,null,null,null,null,null,null,null,null,null,null,null,null,null,null,null,null,null,null,null,null,{"$f":"'1'!AI45","v":0},{"$f":"'1'!AJ45","v":0},{"$f":"'1'!AK45","v":0},{"$f":"'1'!AL45","v":0},{"$f":"'1'!AM45","v":0},{"$f":"'1'!AN45","v":0}]
[null,null,"часы",null,null,null,null,null,null,null,null,null,null,null,null,null,null,null,null,null,null,null,null,null,null,null,null,null,null,null,null,null,null,null,{"$f":"'1'!AI46","v":0},{"$f":"'1'!AJ46","v":0},{"$f":"'1'!AK46","v":0},{"$f":"'1'!AL46","v":0},{"$f":"'1'!AM46","v":0},{"$f":"'1'!AN46","v":0}]
[null,null,"ставка",null,null,null,null,null,null,null,null,null,null,null,null,null,null,null,null,null,null,null,null,null,null,null,null,null,null,null,null,null,null,null,{"$f":"'1'!AI47","v":0},{"$f":"'1'!AJ47","v":0},{"$f":"'1'!AK47","v":0},{"$f":"'1'!AL47","v":0},{"$f":"'1'!AM47","v":0},{"$f":"'1'!AN47","v":0}]
[null,null,"часы",null,null,null,null,null,null,null,null,null,null,null,null,null,null,null,null,null,null,null,null,null,null,null,null,null,null,null,null,null,null,null,{"$f":"'1'!AI48","v":0},{"$f":"'1'!AJ48","v":0},{"$f":"'1'!AK48","v":0},{"$f":"'1'!AL48","v":0},{"$f":"'1'!AM48","v":0},{"$f":"'1'!AN48","v":0}]
[null,null,"ставка",null,null,null,null,null,null,null,null,null,null,null,null,null,null,null,null,null,null,null,null,null,null,null,null,null,null,null,null,null,null,null,{"$f":"'1'!AI49","v":0},{"$f":"'1'!AJ49","v":0},{"$f":"'1'!AK49","v":0},{"$f":"'1'!AL49","v":0},{"$f":"'1'!AM49","v":0},{"$f":"'1'!AN49","v":0}]
[null,null,"часы",null,null,null,null,null,null,null,null,null,null,null,null,null,null,null,null,null,null,null,null,null,null,null,null,null,null,null,null,null,null,null,{"$f":"'1'!AI50","v":0},{"$f":"'1'!AJ50","v":0},{"$f":"'1'!AK50","v":0},{"$f":"'1'!AL50","v":0},{"$f":"'1'!AM50","v":0},{"$f":"'1'!AN50","v":0}]
[null,null,"ставка",null,null,null,null,null,null,null,null,null,null,null,null,null,null,null,null,null,null,null,null,null,null,null,null,null,null,null,null,null,null,null,{"$f":"'1'!AI51","v":0},{"$f":"'1'!AJ51","v":0},{"$f":"'1'!AK51","v":0},{"$f":"'1'!AL51","v":0},{"$f":"'1'!AM51","v":0},{"$f":"'1'!AN51","v":0}]
[]
[]
[null,null,"часы",null,null,null,null,null,null,null,null,null,null,null,null,null,null,null,null,null,null,null,null,null,null,null,1,null,null,null,null,null,null,null,{"$f":"'1'!AI52","v":1},{"$f":"'1'!AJ52","v":0},{"$f":"'1'!AK52","v":0},{"$f":"'1'!AL52","v":0},{"$f":"'1'!AM52","v":0},{"$f":"'1'!AN52","v":1}]
[null,null,"ставка",null,null,null,null,null,null,null,null,null,null,null,null,null,null,null,null,null,null,null,null,null,null,null,null,null,null,null,null,null,null,null,{"$f":"'1'!AI53","v":0},{"$f":"'1'!AJ53","v":0},{"$f":"'1'!AK53","v":0},{"$f":"'1'!AL53","v":0},{"$f":"'1'!AM53","v":0},{"$f":"'1'!AN53","v":0}]
["Иванова Г.В.","цветовод 2 категория","часы","В",0.29166666666666602,0.33333333333333298,0.33333333333333298,0.33333333333333298,0.33333333333333298,0.33333333333333298,"В","В",0.33333333333333298,0.33333333333333298,0.33333333333333298,"Б","Б","О","О","О","О","О","О","Р","В","В",3,4,3,0.33333333333333298,"В","В",0.33333333333333298,0.33333333333333298,{"$f":"'1'!AI54","v":0},{"$f":"'1'!AJ54","v":0},{"$f":"'1'!AK54","v":0},{"$f":"'1'!AL54","v":0},{"$f":"'1'!AM54","v":0},{"$f":"'1'!AN54","v":0}]
[null,null,"ставка",null,null,null,null,null,null,null,null,null,null,null,null,null,null,null,null,null,null,null,null,null,null,null,null,null,null,null,null,null,null,null,{"$f":"'1'!AI55","v":0},{"$f":"'1'!AJ55","v":0},{"$f":"'1'!AK55","v":0},{"$f":"'1'!AL55","v":0},{"$f":"'1'!AM55","v":0},{"$f":"'1'!AN55","v":0}]
["Иванова Г.В.","цветовод 2 категория","часы","В",0.29166666666666602,0.33333333333333298,0.33333333333333298,0.33333333333333298,0.33333333333333298,0.33333333333333298,"В","В",0.33333333333333298,0.33333333333333298,0.33333333333333298,"Б","Б","О","О","О","О","О","О","Р","В","В",3,4,3,0.33333333333333298,"В","В",0.33333333333333298,0.33333333333333298,{"$f":"'1'!AI56","v":0},{"$f":"'1'!AJ56","v":0},{"$f":"'1'!AK56","v":0},{"$f":"'1'!AL56","v":0},{"$f":"'1'!AM56","v":0},{"$f":"'1'!AN56","v":0}]
[null,null,"ставка",null,null,null,null,null,null,null,null,null,null,null,null,null,null,null,null,null,null,null,null,null,null,null,null,null,null,null,null,null,null,null,{"$f":"'1'!AI57","v":0},{"$f":"'1'!AJ57","v":0},{"$f":"'1'!AK57","v":0},{"$f":"'1'!AL57","v":0},{"$f":"'1'!AM57","v":0},{"$f":"'1'!AN57","v":0}]

{"sheet":"Обозначения в табеле","index":1,"n_rows":23,"n_cols":2,"rows_kept":23,"cut":false,"hidden":false,"merged":[]}
["Обозначения в табеле:"]
["О -отуск,"]
["Б - болничный лист,"]
["В - выходной,"]
["Р -отуск по уходу за ребенком."]
[]
["Чтобы очистить ячейки табеля, нужно выбрать диапазон \"Очистить_табель\" и удалить данные."]
[]
["В табеле ставить часы и минуты через двоеточие. Например,  8:10  или  6:00."]
[]
["Чтобы вставить строку (столбец), нужно нажать правой мышкой на столбец (строку) адреса строк ( столбцов)."]
[]
["Формулы уже все заданы, просьба НЕ менять их воизбежание ошибок!!!"]
[]
["Просьба расположить списочный состав по Должностям"]
[]
["Заполняем только строку День (например отработанные сутки ставим в строке День 24:00)"]
[]
["Табель предоставляется по каждому ЦУПу"]
[]
["Если табель сотрудников ЦУПа ведут 2 человека, то по этому ЦУПу будет 2 табеля."]
[]
["Ставка","вместо этого слова ставим сумму ставки  /  оклада / к-во точек"]

{"sheet":"1","index":2,"n_rows":53,"n_cols":40,"rows_kept":53,"cut":false,"hidden":true,"merged":[[6,39,8,39],[6,34,8,34],[6,35,8,35],[6,36,8,36],[6,37,8,37],[6,38,8,38]]}
[]
[]
[]
[]
[]
[]
[null,null,null,null,null,null,null,null,null,null,null,null,null,null,null,null,null,null,null,null,null,null,null,null,null,null,null,null,null,null,null,null,null,null,"Итого часов, минут","Больнич ный лист","Отпуск","Выхдные дни","Отпуск по уходу за ребенком","Всего отработано дней"]
[]
[null,null,null,{"$f":"табельЦУП_12!D9","v":"Сб"},{"$f":"IF(D9=\"Сб\",\"Вс\",IF(D9=\"Вс\",\"Пн\",IF(D9=\"Пн\",\"Вт\",IF(D9=\"Вт\",\"Ср\",IF(D9=\"Ср\",\"Чт\",IF(D9=\"Чт\",\"Пт\",IF(D9=\"Пт\",\"Сб\",\" \")))))))","v":"Вс"},{"$f":"IF(E9=\"Сб\",\"Вс\",IF(E9=\"Вс\",\"Пн\",IF(E9=\"Пн\",\"Вт\",IF(E9=\"Вт\",\"Ср\",IF(E9=\"Ср\",\"Чт\",IF(E9=\"Чт\",\"Пт\",IF(E9=\"Пт\",\"Сб\",\" \")))))))","v":"Пн"},"Вт","Ср","Чт","Пт","Сб","Вс","Пн","Вт","Ср","Чт","Пт","Сб","Вс","Пн","Вт","Ср","Чт","Пт","Сб","Вс","Пн","Вт","Ср","Чт","Пт","Сб","Вс","Пн"]
[null,null,null,null,null,null,null,null,null,null,null,null,null,null,null,null,null,null,null,null,null,null,null,null,null,null,null,null,null,null,null,null,null,null,{"$f":"SUM(табельЦУП_12!D10:'табельЦУП_12'!AH10)","v":4.9583333333333277},{"$f":"COUNTIF(табельЦУП_12!D10:'табельЦУП_12'!AH10,\"б\")","v":2},{"$f":"COUNTIF(табельЦУП_12!D10:'табельЦУП_12'!AH10,\"о\")","v":6},{"$f":"COUNTIF(табельЦУП_12!D10:'табельЦУП_12'!AH10,\"в\")","v":7},{"$f":"COUNTIF(табельЦУП_12!D10:'табельЦУП_12'!AH10,\"р\")","v":1},{"$f":"COUNTIF(табельЦУП_12!D10:'табельЦУП_12'!AH10,\">0\")","v":15}]
[null,null,null,null,null,null,null,null,null,null,null,null,null,null,null,null,null,null,null,null,null,null,null,null,null,null,null,null,null,null,null,null,null,null,{"$f":"SUM(табельЦУП_12!D11:'табельЦУП_12'!AH11)","v":0},{"$f":"COUNTIF(табельЦУП_12!D11:'табельЦУП_12'!AH11,\"б\")","v":0},{"$f":"COUNTIF(табельЦУП_12!D11:'табельЦУП_12'!AH11,\"о\")","v":0},{"$f":"COUNTIF(табельЦУП_12!D11:'табельЦУП_12'!AH11,\"в\")","v":0},{"$f":"COUNTIF(табельЦУП_12!D11:'табельЦУП_12'!AH11,\"р\")","v":0},{"$f":"COUNTIF(табельЦУП_12!D11:'табельЦУП_12'!AH11,\">0\")","v":0}]
[null,null,null,null,null,null,null,null,null,null,null,null,null,null,null,null,null,null,null,null,null,null,null,null,null,null,null,null,null,null,null,null,null,null,{"$f":"SUM(табельЦУП_12!D12:'табельЦУП_12'!AH12)","v":0},{"$f":"COUNTIF(табельЦУП_12!D12:'табельЦУП_12'!AH12,\"б\")","v":0},{"$f":"COUNTIF(табельЦУП_12!D12:'табельЦУП_12'!AH12,\"о\")","v":0},{"$f":"COUNTIF(табельЦУП_12!D12:'табельЦУП_12'!AH12,\"в\")","v":0},{"$f":"COUNTIF(табельЦУП_12!D12:'табельЦУП_12'!AH12,\"р\")","v":0},{"$f":"COUNTIF(табельЦУП_12!D12:'табельЦУП_12'!AH12,\">0\")","v":0}]
[null,null,null,null,null,null,null,null,null,null,null,null,null,null,null,null,null,null,null,null,null,null,null,null,null,null,null,null,null,null,null,null,null,null,{"$f":"SUM(табельЦУП_12!D13:'табельЦУП_12'!AH13)","v":0},{"$f":"COUNTIF(табельЦУП_12!D13:'табельЦУП_12'!AH13,\"б\")","v":0},{"$f":"COUNTIF(табельЦУП_12!D13:'табельЦУП_12'!AH13,\"о\")","v":0},{"$f":"COUNTIF(табельЦУП_12!D13:'табельЦУП_12'!AH13,\"в\")","v":0},{"$f":"COUNTIF(табельЦУП_12!D13:'табельЦУП_12'!AH13,\"р\")","v":0},{"$f":"COUNTIF(табельЦУП_12!D13:'табельЦУП_12'!AH13,\">0\")","v":0}]
[null,null,null,null,null,null,null,null,null,null,null,null,null,null,null,null,null,null,null,null,null,null,null,null,null,null,null,null,null,null,null,null,null,null,{"$f":"SUM(табельЦУП_12!D14:'табельЦУП_12'!AH14)","v":0},{"$f":"COUNTIF(табельЦУП_12!D14:'табельЦУП_12'!AH14,\"б\")","v":0},{"$f":"COUNTIF(табельЦУП_12!D14:'табельЦУП_12'!AH14,\"о\")","v":0},{"$f":"COUNTIF(табельЦУП_12!D14:'табельЦУП_12'!AH14,\"в\")","v":0},{"$f":"COUNTIF(табельЦУП_12!D14:'табельЦУП_12'!AH14,\"р\")","v":0},{"$f":"COUNTIF(табельЦУП_12!D14:'табельЦУП_12'!AH14,\">0\")","v":0}]
[null,null,null,null,null,null,null,null,null,null,null,null,null,null,null,null,null,null,null,null,null,null,null,null,null,null,null,null,null,null,null,null,null,null,{"$f":"SUM(табельЦУП_12!D15:'табельЦУП_12'!AH15)","v":0},{"$f":"COUNTIF(табельЦУП_12!D15:'табельЦУП_12'!AH15,\"б\")","v":0},{"$f":"COUNTIF(табельЦУП_12!D15:'табельЦУП_12'!AH15,\"о\")","v":0},{"$f":"COUNTIF(табельЦУП_12!D15:'табельЦУП_12'!AH15,\"в\")","v":0},{"$f":"COUNTIF(табельЦУП_12!D15:'табельЦУП_12'!AH15,\"р\")","v":0},{"$f":"COUNTIF(табельЦУП_12!D15:'табельЦУП_12'!AH15,\">0\")","v":0}]
[null,null,null,null,null,null,null,null,null,null,null,null,null,null,null,null,null,null,null,null,null,null,null,null,null,null,null,null,null,null,null,null,null,null,{"$f":"SUM(табельЦУП_12!D16:'табельЦУП_12'!AH16)","v":0},{"$f":"COUNTIF(табельЦУП_12!D16:'табельЦУП_12'!AH16,\"б\")","v":0},{"$f":"COUNTIF(табельЦУП_12!D16:'табельЦУП_12'!AH16,\"о\")","v":0},{"$f":"COUNTIF(табельЦУП_12!D16:'табельЦУП_12'!AH16,\"в\")","v":0},{"$f":"COUNTIF(табельЦУП_12!D16:'табельЦУП_12'!AH16,\"р\")","v":0},{"$f":"COUNTIF(табельЦУП_12!D16:'табельЦУП_12'!AH16,\">0\")","v":0}]
[null,null,null,null,null,null,null,null,null,null,null,null,null,null,null,null,null,null,null,null,null,null,null,null,null,null,null,null,null,null,null,null,null,null,{"$f":"SUM(табельЦУП_12!D17:'табельЦУП_12'!AH17)","v":0},{"$f":"COUNTIF(табельЦУП_12!D17:'табельЦУП_12'!AH17,\"б\")","v":0},{"$f":"COUNTIF(табельЦУП_12!D17:'табельЦУП_12'!AH17,\"о\")","v":0},{"$f":"COUNTIF(табельЦУП_12!D17:'табельЦУП_12'!AH17,\"в\")","v":0},{"$f":"COUNTIF(табельЦУП_12!D17:'табельЦУП_12'!AH17,\"р\")","v":0},{"$f":"COUNTIF(табельЦУП_12!D17:'табельЦУП_12'!AH17,\">0\")","v":0}]
[null,null,null,null,null,null,null,null,null,null,null,null,null,null,null,null,null,null,null,null,null,null,null,null,null,null,null,null,null,null,null,null,null,null,{"$f":"SUM(табельЦУП_12!D18:'табельЦУП_12'!AH18)","v":0},{"$f":"COUNTIF(табельЦУП_12!D18:'табельЦУП_12'!AH18,\"б\")","v":0},{"$f":"COUNTIF(табельЦУП_12!D18:'табельЦУП_12'!AH18,\"о\")","v":0},{"$f":"COUNTIF(табельЦУП_12!D18:'табельЦУП_12'!AH18,\"в\")","v":0},{"$f":"COUNTIF(табельЦУП_12!D18:'табельЦУП_12'!AH18,\"р\")","v":0},{"$f":"COUNTIF(табельЦУП_12!D18:'табельЦУП_12'!AH18,\">0\")","v":0}]
[null,null,null,null,null,null,null,null,null,null,null,null,null,null,null,null,null,null,null,null,null,null,null,null,null,null,null,null,null,null,null,null,null,null,{"$f":"SUM(табельЦУП_12!D19:'табельЦУП_12'!AH19)","v":0},{"$f":"COUNTIF(табельЦУП_12!D19:'табельЦУП_12'!AH19,\"б\")","v":0},{"$f":"COUNTIF(табельЦУП_12!D19:'табельЦУП_12'!AH19,\"о\")","v":0},{"$f":"COUNTIF(табельЦУП_12!D19:'табельЦУП_12'!AH19,\"в\")","v":0},{"$f":"COUNTIF(табельЦУП_12!D19:'табельЦУП_12'!AH19,\"р\")","v":0},{"$f":"COUNTIF(табельЦУП_12!D19:'табельЦУП_12'!AH19,\">0\")","v":0}]
[null,null,null,null,null,null,null,null,null,null,null,null,null,null,null,null,null,null,null,null,null,null,null,null,null,null,null,null,null,null,null,null,null,null,{"$f":"SUM(табельЦУП_12!D20:'табельЦУП_12'!AH20)","v":0},{"$f":"COUNTIF(табельЦУП_12!D20:'табельЦУП_12'!AH20,\"б\")","v":0},{"$f":"COUNTIF(табельЦУП_12!D20:'табельЦУП_12'!AH20,\"о\")","v":0},{"$f":"COUNTIF(табельЦУП_12!D20:'табельЦУП_12'!AH20,\"в\")","v":0},{"$f":"COUNTIF(табельЦУП_12!D20:'табельЦУП_12'!AH20,\"р\")","v":0},{"$f":"COUNTIF(табельЦУП_12!D20:'табельЦУП_12'!AH20,\">0\")","v":0}]
[null,null,null,null,null,null,null,null,null,null,null,null,null,null,null,null,null,null,null,null,null,null,null,null,null,null,null,null,null,null,null,null,null,null,{"$f":"SUM(табельЦУП_12!D21:'табельЦУП_12'!AH21)","v":0},{"$f":"COUNTIF(табельЦУП_12!D21:'табельЦУП_12'!AH21,\"б\")","v":0},{"$f":"COUNTIF(табельЦУП_12!D21:'табельЦУП_12'!AH21,\"о\")","v":0},{"$f":"COUNTIF(табельЦУП_12!D21:'табельЦУП_12'!AH21,\"в\")","v":0},{"$f":"COUNTIF(табельЦУП_12!D21:'табельЦУП_12'!AH21,\"р\")","v":0},{"$f":"COUNTIF(табельЦУП_12!D21:'табельЦУП_12'!AH21,\">0\")","v":0}]
[null,null,null,null,null,null,null,null,null,null,null,null,null,null,null,null,null,null,null,null,null,null,null,null,null,null,null,null,null,null,null,null,null,null,{"$f":"SUM(табельЦУП_12!D22:'табельЦУП_12'!AH22)","v":0},{"$f":"COUNTIF(табельЦУП_12!D22:'табельЦУП_12'!AH22,\"б\")","v":0},{"$f":"COUNTIF(табельЦУП_12!D22:'табельЦУП_12'!AH22,\"о\")","v":0},{"$f":"COUNTIF(табельЦУП_12!D22:'табельЦУП_12'!AH22,\"в\")","v":0},{"$f":"COUNTIF(табельЦУП_12!D22:'табельЦУП_12'!AH22,\"р\")","v":0},{"$f":"COUNTIF(табельЦУП_12!D22:'табельЦУП_12'!AH22,\">0\")","v":0}]
[null,null,null,null,null,null,null,null,null,null,null,null,null,null,null,null,null,null,null,null,null,null,null,null,null,null,null,null,null,null,null,null,null,null,{"$f":"SUM(табельЦУП_12!D23:'табельЦУП_12'!AH23)","v":0},{"$f":"COUNTIF(табельЦУП_12!D23:'табельЦУП_12'!AH23,\"б\")","v":0},{"$f":"COUNTIF(табельЦУП_12!D23:'табельЦУП_12'!AH23,\"о\")","v":0},{"$f":"COUNTIF(табельЦУП_12!D23:'табельЦУП_12'!AH23,\"в\")","v":0},{"$f":"COUNTIF(табельЦУП_12!D23:'табельЦУП_12'!AH23,\"р\")","v":0},{"$f":"COUNTIF(табельЦУП_12!D23:'табельЦУП_12'!AH23,\">0\")","v":0}]
[null,null,null,null,null,null,null,null,null,null,null,null,null,null,null,null,null,null,null,null,null,null,null,null,null,null,null,null,null,null,null,null,null,null,{"$f":"SUM(табельЦУП_12!D24:'табельЦУП_12'!AH24)","v":0},{"$f":"COUNTIF(табельЦУП_12!D24:'табельЦУП_12'!AH24,\"б\")","v":0},{"$f":"COUNTIF(табельЦУП_12!D24:'табельЦУП_12'!AH24,\"о\")","v":0},{"$f":"COUNTIF(табельЦУП_12!D24:'табельЦУП_12'!AH24,\"в\")","v":0},{"$f":"COUNTIF(табельЦУП_12!D24:'табельЦУП_12'!AH24,\"р\")","v":0},{"$f":"COUNTIF(табельЦУП_12!D24:'табельЦУП_12'!AH24,\">0\")","v":0}]
[null,null,null,null,null,null,null,null,null,null,null,null,null,null,null,null,null,null,null,null,null,null,null,null,null,null,null,null,null,null,null,null,null,null,{"$f":"SUM(табельЦУП_12!D25:'табельЦУП_12'!AH25)","v":0},{"$f":"COUNTIF(табельЦУП_12!D25:'табельЦУП_12'!AH25,\"б\")","v":0},{"$f":"COUNTIF(табельЦУП_12!D25:'табельЦУП_12'!AH25,\"о\")","v":0},{"$f":"COUNTIF(табельЦУП_12!D25:'табельЦУП_12'!AH25,\"в\")","v":0},{"$f":"COUNTIF(табельЦУП_12!D25:'табельЦУП_12'!AH25,\"р\")","v":0},{"$f":"COUNTIF(табельЦУП_12!D25:'табельЦУП_12'!AH25,\">0\")","v":0}]
[null,null,null,null,null,null,null,null,null,null,null,null,null,null,null,null,null,null,null,null,null,null,null,null,null,null,null,null,null,null,null,null,null,null,{"$f":"SUM(табельЦУП_12!D26:'табельЦУП_12'!AH26)","v":0},{"$f":"COUNTIF(табельЦУП_12!D26:'табельЦУП_12'!AH26,\"б\")","v":0},{"$f":"COUNTIF(табельЦУП_12!D26:'табельЦУП_12'!AH26,\"о\")","v":0},{"$f":"COUNTIF(табельЦУП_12!D26:'табельЦУП_12'!AH26,\"в\")","v":0},{"$f":"COUNTIF(табельЦУП_12!D26:'табельЦУП_12'!AH26,\"р\")","v":0},{"$f":"COUNTIF(табельЦУП_12!D26:'табельЦУП_12'!AH26,\">0\")","v":0}]
[null,null,null,null,null,null,null,null,null,null,null,null,null,null,null,null,null,null,null,null,null,null,null,null,null,null,null,null,null,null,null,null,null,null,{"$f":"SUM(табельЦУП_12!D27:'табельЦУП_12'!AH27)","v":0},{"$f":"COUNTIF(табельЦУП_12!D27:'табельЦУП_12'!AH27,\"б\")","v":0},{"$f":"COUNTIF(табельЦУП_12!D27:'табельЦУП_12'!AH27,\"о\")","v":0},{"$f":"COUNTIF(табельЦУП_12!D27:'табельЦУП_12'!AH27,\"в\")","v":0},{"$f":"COUNTIF(табельЦУП_12!D27:'табельЦУП_12'!AH27,\"р\")","v":0},{"$f":"COUNTIF(табельЦУП_12!D27:'табельЦУП_12'!AH27,\">0\")","v":0}]
[null,null,null,null,null,null,null,null,null,null,null,null,null,null,null,null,null,null,null,null,null,null,null,null,null,null,null,null,null,null,null,null,null,null,{"$f":"SUM(табельЦУП_12!D28:'табельЦУП_12'!AH28)","v":0},{"$f":"COUNTIF(табельЦУП_12!D28:'табельЦУП_12'!AH28,\"б\")","v":0},{"$f":"COUNTIF(табельЦУП_12!D28:'табельЦУП_12'!AH28,\"о\")","v":0},{"$f":"COUNTIF(табельЦУП_12!D28:'табельЦУП_12'!AH28,\"в\")","v":0},{"$f":"COUNTIF(табельЦУП_12!D28:'табельЦУП_12'!AH28,\"р\")","v":0},{"$f":"COUNTIF(табельЦУП_12!D28:'табельЦУП_12'!AH28,\">0\")","v":0}]
[null,null,null,null,null,null,null,null,null,null,null,null,null,null,null,null,null,null,null,null,null,null,null,null,null,null,null,null,null,null,null,null,null,null,{"$f":"SUM(табельЦУП_12!D29:'табельЦУП_12'!AH29)","v":0},{"$f":"COUNTIF(табельЦУП_12!D29:'табельЦУП_12'!AH29,\"б\")","v":0},{"$f":"COUNTIF(табельЦУП_12!D29:'табельЦУП_12'!AH29,\"о\")","v":0},{"$f":"COUNTIF(табельЦУП_12!D29:'табельЦУП_12'!AH29,\"в\")","v":0},{"$f":"COUNTIF(табельЦУП_12!D29:'табельЦУП_12'!AH29,\"р\")","v":0},{"$f":"COUNTIF(табельЦУП_12!D29:'табельЦУП_12'!AH29,\">0\")","v":0}]
[null,null,null,null,null,null,null,null,null,null,null,null,null,null,null,null,null,null,null,null,null,null,null,null,null,null,null,null,null,null,null,null,null,null,{"$f":"SUM(табельЦУП_12!D30:'табельЦУП_12'!AH30)","v":0},{"$f":"COUNTIF(табельЦУП_12!D30:'табельЦУП_12'!AH30,\"б\")","v":0},{"$f":"COUNTIF(табельЦУП_12!D30:'табельЦУП_12'!AH30,\"о\")","v":0},{"$f":"COUNTIF(табельЦУП_12!D30:'табельЦУП_12'!AH30,\"в\")","v":0},{"$f":"COUNTIF(табельЦУП_12!D30:'табельЦУП_12'!AH30,\"р\")","v":0},{"$f":"COUNTIF(табельЦУП_12!D30:'табельЦУП_12'!AH30,\">0\")","v":0}]
[null,null,null,null,null,null,null,null,null,null,null,null,null,null,null,null,null,null,null,null,null,null,null,null,null,null,null,null,null,null,null,null,null,null,{"$f":"SUM(табельЦУП_12!D31:'табельЦУП_12'!AH31)","v":0},{"$f":"COUNTIF(табельЦУП_12!D31:'табельЦУП_12'!AH31,\"б\")","v":0},{"$f":"COUNTIF(табельЦУП_12!D31:'табельЦУП_12'!AH31,\"о\")","v":0},{"$f":"COUNTIF(табельЦУП_12!D31:'табельЦУП_12'!AH31,\"в\")","v":0},{"$f":"COUNTIF(табельЦУП_12!D31:'табельЦУП_12'!AH31,\"р\")","v":0},{"$f":"COUNTIF(табельЦУП_12!D31:'табельЦУП_12'!AH31,\">0\")","v":0}]
[null,null,null,null,null,null,null,null,null,null,null,null,null,null,null,null,null,null,null,null,null,null,null,null,null,null,null,null,null,null,null,null,null,null,{"$f":"SUM(табельЦУП_12!D32:'табельЦУП_12'!AH32)","v":0},{"$f":"COUNTIF(табельЦУП_12!D32:'табельЦУП_12'!AH32,\"б\")","v":0},{"$f":"COUNTIF(табельЦУП_12!D32:'табельЦУП_12'!AH32,\"о\")","v":0},{"$f":"COUNTIF(табельЦУП_12!D32:'табельЦУП_12'!AH32,\"в\")","v":0},{"$f":"COUNTIF(табельЦУП_12!D32:'табельЦУП_12'!AH32,\"р\")","v":0},{"$f":"COUNTIF(табельЦУП_12!D32:'табельЦУП_12'!AH32,\">0\")","v":0}]
[null,null,null,null,null,null,null,null,null,null,null,null,null,null,null,null,null,null,null,null,null,null,null,null,null,null,null,null,null,null,null,null,null,null,{"$f":"SUM(табельЦУП_12!D33:'табельЦУП_12'!AH33)","v":0},{"$f":"COUNTIF(табельЦУП_12!D33:'табельЦУП_12'!AH33,\"б\")","v":0},{"$f":"COUNTIF(табельЦУП_12!D33:'табельЦУП_12'!AH33,\"о\")","v":0},{"$f":"COUNTIF(табельЦУП_12!D33:'табельЦУП_12'!AH33,\"в\")","v":0},{"$f":"COUNTIF(табельЦУП_12!D33:'табельЦУП_12'!AH33,\"р\")","v":0},{"$f":"COUNTIF(табельЦУП_12!D33:'табельЦУП_12'!AH33,\">0\")","v":0}]
[null,null,null,null,null,null,null,null,null,null,null,null,null,null,null,null,null,null,null,null,null,null,null,null,null,null,null,null,null,null,null,null,null,null,{"$f":"SUM(табельЦУП_12!D34:'табельЦУП_12'!AH34)","v":0},{"$f":"COUNTIF(табельЦУП_12!D34:'табельЦУП_12'!AH34,\"б\")","v":0},{"$f":"COUNTIF(табельЦУП_12!D34:'табельЦУП_12'!AH34,\"о\")","v":0},{"$f":"COUNTIF(табельЦУП_12!D34:'табельЦУП_12'!AH34,\"в\")","v":0},{"$f":"COUNTIF(табельЦУП_12!D34:'табельЦУП_12'!AH34,\"р\")","v":0},{"$f":"COUNTIF(табельЦУП_12!D34:'табельЦУП_12'!AH34,\">0\")","v":0}]
[null,null,null,null,null,null,null,null,null,null,null,null,null,null,null,null,null,null,null,null,null,null,null,null,null,null,null,null,null,null,null,null,null,null,{"$f":"SUM(табельЦУП_12!D35:'табельЦУП_12'!AH35)","v":0},{"$f":"COUNTIF(табельЦУП_12!D35:'табельЦУП_12'!AH35,\"б\")","v":0},{"$f":"COUNTIF(табельЦУП_12!D35:'табельЦУП_12'!AH35,\"о\")","v":0},{"$f":"COUNTIF(табельЦУП_12!D35:'табельЦУП_12'!AH35,\"в\")","v":0},{"$f":"COUNTIF(табельЦУП_12!D35:'табельЦУП_12'!AH35,\"р\")","v":0},{"$f":"COUNTIF(табельЦУП_12!D35:'табельЦУП_12'!AH35,\">0\")","v":0}]
[null,null,null,null,null,null,null,null,null,null,null,null,null,null,null,null,null,null,null,null,null,null,null,null,null,null,null,null,null,null,null,null,null,null,{"$f":"SUM(табельЦУП_12!D36:'табельЦУП_12'!AH36)","v":0},{"$f":"COUNTIF(табельЦУП_12!D36:'табельЦУП_12'!AH36,\"б\")","v":0},{"$f":"COUNTIF(табельЦУП_12!D36:'табельЦУП_12'!AH36,\"о\")","v":0},{"$f":"COUNTIF(табельЦУП_12!D36:'табельЦУП_12'!AH36,\"в\")","v":0},{"$f":"COUNTIF(табельЦУП_12!D36:'табельЦУП_12'!AH36,\"р\")","v":0},{"$f":"COUNTIF(табельЦУП_12!D36:'табельЦУП_12'!AH36,\">0\")","v":0}]
[null,null,null,null,null,null,null,null,null,null,null,null,null,null,null,null,null,null,null,null,null,null,null,null,null,null,null,null,null,null,null,null,null,null,{"$f":"SUM(табельЦУП_12!D37:'табельЦУП_12'!AH37)","v":0},{"$f":"COUNTIF(табельЦУП_12!D37:'табельЦУП_12'!AH37,\"б\")","v":0},{"$f":"COUNTIF(табельЦУП_12!D37:'табельЦУП_12'!AH37,\"о\")","v":0},{"$f":"COUNTIF(табельЦУП_12!D37:'табельЦУП_12'!AH37,\"в\")","v":0},{"$f":"COUNTIF(табельЦУП_12!D37:'табельЦУП_12'!AH37,\"р\")","v":0},{"$f":"COUNTIF(табельЦУП_12!D37:'табельЦУП_12'!AH37,\">0\")","v":0}]
[null,null,null,null,null,null,null,null,null,null,null,null,null,null,null,null,null,null,null,null,null,null,null,null,null,null,null,null,null,null,null,null,null,null,{"$f":"SUM(табельЦУП_12!D38:'табельЦУП_12'!AH38)","v":0},{"$f":"COUNTIF(табельЦУП_12!D38:'табельЦУП_12'!AH38,\"б\")","v":0},{"$f":"COUNTIF(табельЦУП_12!D38:'табельЦУП_12'!AH38,\"о\")","v":0},{"$f":"COUNTIF(табельЦУП_12!D38:'табельЦУП_12'!AH38,\"в\")","v":0},{"$f":"COUNTIF(табельЦУП_12!D38:'табельЦУП_12'!AH38,\"р\")","v":0},{"$f":"COUNTIF(табельЦУП_12!D38:'табельЦУП_12'!AH38,\">0\")","v":0}]
[null,null,null,null,null,null,null,null,null,null,null,null,null,null,null,null,null,null,null,null,null,null,null,null,null,null,null,null,null,null,null,null,null,null,{"$f":"SUM(табельЦУП_12!D39:'табельЦУП_12'!AH39)","v":0},{"$f":"COUNTIF(табельЦУП_12!D39:'табельЦУП_12'!AH39,\"б\")","v":0},{"$f":"COUNTIF(табельЦУП_12!D39:'табельЦУП_12'!AH39,\"о\")","v":0},{"$f":"COUNTIF(табельЦУП_12!D39:'табельЦУП_12'!AH39,\"в\")","v":0},{"$f":"COUNTIF(табельЦУП_12!D39:'табельЦУП_12'!AH39,\"р\")","v":0},{"$f":"COUNTIF(табельЦУП_12!D39:'табельЦУП_12'!AH39,\">0\")","v":0}]
[null,null,null,null,null,null,null,null,null,null,null,null,null,null,null,null,null,null,null,null,null,null,null,null,null,null,null,null,null,null,null,null,null,null,{"$f":"SUM(табельЦУП_12!D40:'табельЦУП_12'!AH40)","v":0},{"$f":"COUNTIF(табельЦУП_12!D40:'табельЦУП_12'!AH40,\"б\")","v":0},{"$f":"COUNTIF(табельЦУП_12!D40:'табельЦУП_12'!AH40,\"о\")","v":0},{"$f":"COUNTIF(табельЦУП_12!D40:'табельЦУП_12'!AH40,\"в\")","v":0},{"$f":"COUNTIF(табельЦУП_12!D40:'табельЦУП_12'!AH40,\"р\")","v":0},{"$f":"COUNTIF(табельЦУП_12!D40:'табельЦУП_12'!AH40,\">0\")","v":0}]
[null,null,null,null,null,null,null,null,null,null,null,null,null,null,null,null,null,null,null,null,null,null,null,null,null,null,null,null,null,null,null,null,null,null,{"$f":"SUM(табельЦУП_12!D41:'табельЦУП_12'!AH41)","v":0},{"$f":"COUNTIF(табельЦУП_12!D41:'табельЦУП_12'!AH41,\"б\")","v":0},{"$f":"COUNTIF(табельЦУП_12!D41:'табельЦУП_12'!AH41,\"о\")","v":0},{"$f":"COUNTIF(табельЦУП_12!D41:'табельЦУП_12'!AH41,\"в\")","v":0},{"$f":"COUNTIF(табельЦУП_12!D41:'табельЦУП_12'!AH41,\"р\")","v":0},{"$f":"COUNTIF(табельЦУП_12!D41:'табельЦУП_12'!AH41,\">0\")","v":0}]
[null,null,null,null,null,null,null,null,null,null,null,null,null,null,null,null,null,null,null,null,null,null,null,null,null,null,null,null,null,null,null,null,null,null,{"$f":"SUM(табельЦУП_12!D42:'табельЦУП_12'!AH42)","v":0},{"$f":"COUNTIF(табельЦУП_12!D42:'табельЦУП_12'!AH42,\"б\")","v":0},{"$f":"COUNTIF(табельЦУП_12!D42:'табельЦУП_12'!AH42,\"о\")","v":0},{"$f":"COUNTIF(табельЦУП_12!D42:'табельЦУП_12'!AH42,\"в\")","v":0},{"$f":"COUNTIF(табельЦУП_12!D42:'табельЦУП_12'!AH42,\"р\")","v":0},{"$f":"COUNTIF(табельЦУП_12!D42:'табельЦУП_12'!AH42,\">0\")","v":0}]
[null,null,null,null,null,null,null,null,null,null,null,null,null,null,null,null,null,null,null,null,null,null,null,null,null,null,null,null,null,null,null,null,null,null,{"$f":"SUM(табельЦУП_12!D43:'табельЦУП_12'!AH43)","v":0},{"$f":"COUNTIF(табельЦУП_12!D43:'табельЦУП_12'!AH43,\"б\")","v":0},{"$f":"COUNTIF(табельЦУП_12!D43:'табельЦУП_12'!AH43,\"о\")","v":0},{"$f":"COUNTIF(табельЦУП_12!D43:'табельЦУП_12'!AH43,\"в\")","v":0},{"$f":"COUNTIF(табельЦУП_12!D43:'табельЦУП_12'!AH43,\"р\")","v":0},{"$f":"COUNTIF(табельЦУП_12!D43:'табельЦУП_12'!AH43,\">0\")","v":0}]
[null,null,null,null,null,null,null,null,null,null,null,null,null,null,null,null,null,null,null,null,null,null,null,null,null,null,null,null,null,null,null,null,null,null,{"$f":"SUM(табельЦУП_12!D44:'табельЦУП_12'!AH44)","v":0},{"$f":"COUNTIF(табельЦУП_12!D44:'табельЦУП_12'!AH44,\"б\")","v":0},{"$f":"COUNTIF(табельЦУП_12!D44:'табельЦУП_12'!AH44,\"о\")","v":0},{"$f":"COUNTIF(табельЦУП_12!D44:'табельЦУП_12'!AH44,\"в\")","v":0},{"$f":"COUNTIF(табельЦУП_12!D44:'табельЦУП_12'!AH44,\"р\")","v":0},{"$f":"COUNTIF(табельЦУП_12!D44:'табельЦУП_12'!AH44,\">0\")","v":0}]
[null,null,null,null,null,null,null,null,null,null,null,null,null,null,null,null,null,null,null,null,null,null,null,null,null,null,null,null,null,null,null,null,null,null,{"$f":"SUM(табельЦУП_12!D45:'табельЦУП_12'!AH45)","v":0},{"$f":"COUNTIF(табельЦУП_12!D45:'табельЦУП_12'!AH45,\"б\")","v":0},{"$f":"COUNTIF(табельЦУП_12!D45:'табельЦУП_12'!AH45,\"о\")","v":0},{"$f":"COUNTIF(табельЦУП_12!D45:'табельЦУП_12'!AH45,\"в\")","v":0},{"$f":"COUNTIF(табельЦУП_12!D45:'табельЦУП_12'!AH45,\"р\")","v":0},{"$f":"COUNTIF(табельЦУП_12!D45:'табельЦУП_12'!AH45,\">0\")","v":0}]
[null,null,null,null,null,null,null,null,null,null,null,null,null,null,null,null,null,null,null,null,null,null,null,null,null,null,null,null,null,null,null,null,null,null,{"$f":"SUM(табельЦУП_12!D46:'табельЦУП_12'!AH46)","v":0},{"$f":"COUNTIF(табельЦУП_12!D46:'табельЦУП_12'!AH46,\"б\")","v":0},{"$f":"COUNTIF(табельЦУП_12!D46:'табельЦУП_12'!AH46,\"о\")","v":0},{"$f":"COUNTIF(табельЦУП_12!D46:'табельЦУП_12'!AH46,\"в\")","v":0},{"$f":"COUNTIF(табельЦУП_12!D46:'табельЦУП_12'!AH46,\"р\")","v":0},{"$f":"COUNTIF(табельЦУП_12!D46:'табельЦУП_12'!AH46,\">0\")","v":0}]
[null,null,null,null,null,null,null,null,null,null,null,null,null,null,null,null,null,null,null,null,null,null,null,null,null,null,null,null,null,null,null,null,null,null,{"$f":"SUM(табельЦУП_12!D47:'табельЦУП_12'!AH47)","v":0},{"$f":"COUNTIF(табельЦУП_12!D47:'табельЦУП_12'!AH47,\"б\")","v":0},{"$f":"COUNTIF(табельЦУП_12!D47:'табельЦУП_12'!AH47,\"о\")","v":0},{"$f":"COUNTIF(табельЦУП_12!D47:'табельЦУП_12'!AH47,\"в\")","v":0},{"$f":"COUNTIF(табельЦУП_12!D47:'табельЦУП_12'!AH47,\"р\")","v":0},{"$f":"COUNTIF(табельЦУП_12!D47:'табельЦУП_12'!AH47,\">0\")","v":0}]
[null,null,null,null,null,null,null,null,null,null,null,null,null,null,null,null,null,null,null,null,null,null,null,null,null,null,null,null,null,null,null,null,null,null,{"$f":"SUM(табельЦУП_12!D48:'табельЦУП_12'!AH48)","v":0},{"$f":"COUNTIF(табельЦУП_12!D48:'табельЦУП_12'!AH48,\"б\")","v":0},{"$f":"COUNTIF(табельЦУП_12!D48:'табельЦУП_12'!AH48,\"о\")","v":0},{"$f":"COUNTIF(табельЦУП_12!D48:'табельЦУП_12'!AH48,\"в\")","v":0},{"$f":"COUNTIF(табельЦУП_12!D48:'табельЦУП_12'!AH48,\"р\")","v":0},{"$f":"COUNTIF(табельЦУП_12!D48:'табельЦУП_12'!AH48,\">0\")","v":0}]
[null,null,null,null,null,null,null,null,null,null,null,null,null,null,null,null,null,null,null,null,null,null,null,null,null,null,null,null,null,null,null,null,null,null,{"$f":"SUM(табельЦУП_12!D49:'табельЦУП_12'!AH49)","v":0},{"$f":"COUNTIF(табельЦУП_12!D49:'табельЦУП_12'!AH49,\"б\")","v":0},{"$f":"COUNTIF(табельЦУП_12!D49:'табельЦУП_12'!AH49,\"о\")","v":0},{"$f":"COUNTIF(табельЦУП_12!D49:'табельЦУП_12'!AH49,\"в\")","v":0},{"$f":"COUNTIF(табельЦУП_12!D49:'табельЦУП_12'!AH49,\"р\")","v":0},{"$f":"COUNTIF(табельЦУП_12!D49:'табельЦУП_12'!AH49,\">0\")","v":0}]
[null,null,null,null,null,null,null,null,null,null,null,null,null,null,null,null,null,null,null,null,null,null,null,null,null,null,null,null,null,null,null,null,null,null,{"$f":"SUM(табельЦУП_12!D50:'табельЦУП_12'!AH50)","v":0},{"$f":"COUNTIF(табельЦУП_12!D50:'табельЦУП_12'!AH50,\"б\")","v":0},{"$f":"COUNTIF(табельЦУП_12!D50:'табельЦУП_12'!AH50,\"о\")","v":0},{"$f":"COUNTIF(табельЦУП_12!D50:'табельЦУП_12'!AH50,\"в\")","v":0},{"$f":"COUNTIF(табельЦУП_12!D50:'табельЦУП_12'!AH50,\"р\")","v":0},{"$f":"COUNTIF(табельЦУП_12!D50:'табельЦУП_12'!AH50,\">0\")","v":0}]
[null,null,null,null,null,null,null,null,null,null,null,null,null,null,null,null,null,null,null,null,null,null,null,null,null,null,null,null,null,null,null,null,null,null,{"$f":"SUM(табельЦУП_12!D51:'табельЦУП_12'!AH51)","v":0},{"$f":"COUNTIF(табельЦУП_12!D51:'табельЦУП_12'!AH51,\"б\")","v":0},{"$f":"COUNTIF(табельЦУП_12!D51:'табельЦУП_12'!AH51,\"о\")","v":0},{"$f":"COUNTIF(табельЦУП_12!D51:'табельЦУП_12'!AH51,\"в\")","v":0},{"$f":"COUNTIF(табельЦУП_12!D51:'табельЦУП_12'!AH51,\"р\")","v":0},{"$f":"COUNTIF(табельЦУП_12!D51:'табельЦУП_12'!AH51,\">0\")","v":0}]
[null,null,null,null,null,null,null,null,null,null,null,null,null,null,null,null,null,null,null,null,null,null,null,null,null,null,null,null,null,null,null,null,null,null,{"$f":"SUM(табельЦУП_12!D54:'табельЦУП_12'!AH54)","v":1},{"$f":"COUNTIF(табельЦУП_12!D54:'табельЦУП_12'!AH54,\"б\")","v":0},{"$f":"COUNTIF(табельЦУП_12!D54:'табельЦУП_12'!AH54,\"о\")","v":0},{"$f":"COUNTIF(табельЦУП_12!D54:'табельЦУП_12'!AH54,\"в\")","v":0},{"$f":"COUNTIF(табельЦУП_12!D54:'табельЦУП_12'!AH54,\"р\")","v":0},{"$f":"COUNTIF(табельЦУП_12!D54:'табельЦУП_12'!AH54,\">0\")","v":1}]
[null,null,null,null,null,null,null,null,null,null,null,null,null,null,null,null,null,null,null,null,null,null,null,null,null,null,null,null,null,null,null,null,null,null,{"$f":"SUM(табельЦУП_12!D55:'табельЦУП_12'!AH55)","v":0},{"$f":"COUNTIF(табельЦУП_12!D55:'табельЦУП_12'!AH55,\"б\")","v":0},{"$f":"COUNTIF(табельЦУП_12!D55:'табельЦУП_12'!AH55,\"о\")","v":0},{"$f":"COUNTIF(табельЦУП_12!D55:'табельЦУП_12'!AH55,\"в\")","v":0},{"$f":"COUNTIF(табельЦУП_12!D55:'табельЦУП_12'!AH55,\"р\")","v":0},{"$f":"COUNTIF(табельЦУП_12!D55:'табельЦУП_12'!AH55,\">0\")","v":0}]